Body,Body Name,Date,TransNo,Amount � (Excl VAT),Supplier name,Description,Expense Area,Expense Type,Expense Code,
http://statistics.data.gov.uk/id/local-authority/00BF,London Borough of Sutton,05/07/2016,1222996,68.99, JS ONLINE GROCERY,Food Shop After school club,Peoples Services Directorate,Provisions - General,F150,
http://statistics.data.gov.uk/id/local-authority/00BF,London Borough of Sutton,19/07/2016,1222996,67.00, JS ONLINE GROCERY,Food Shop Holiday Club,Peoples Services Directorate,Provisions - General,F150,
http://statistics.data.gov.uk/id/local-authority/00BF,London Borough of Sutton,26/07/2016,1222236,141.37, JS ONLINE GROCERY,Holidy Club Shopping for The Grange,Peoples Services Directorate,Provisions - General,F150,
http://statistics.data.gov.uk/id/local-authority/00BF,London Borough of Sutton,16/07/2016,1222996,37.41, AMAZON UK RETAIL AMAZON.C,Printer Ink for Sutton West,Peoples Services Directorate,Refreshments,F155,
http://statistics.data.gov.uk/id/local-authority/00BF,London Borough of Sutton,26/07/2016,1222996,190.82, JS ONLINE GROCERY,Food Shop for Sutton West,Peoples Services Directorate,Refreshments,F155,
http://statistics.data.gov.uk/id/local-authority/00BF,London Borough of Sutton,26/07/2016,1222996,20.00, JS ONLINE GROCERY,Food Shop Sutton West,Peoples Services Directorate,Refreshments,F155,
http://statistics.data.gov.uk/id/local-authority/00BF,London Borough of Sutton,12/07/2016,1222236,12.00, COMPANIES HOUSE,Application to register Sutton Education Services Ltd with Companies House,Peoples Services Directorate,Materials - General,F100,
http://statistics.data.gov.uk/id/local-authority/00BF,London Borough of Sutton,27/07/2016,1222677,12.10, TSGN,Travel Court SO,Peoples Services Directorate,Travelling and Subsistence Allowances,A530,
http://statistics.data.gov.uk/id/local-authority/00BF,London Borough of Sutton,30/06/2016,1222987,20.00, OYSTER BUS AUTOTOP,Travel LCT staff,Peoples Services Directorate,Travelling and Subsistence Allowances,A530,
http://statistics.data.gov.uk/id/local-authority/00BF,London Borough of Sutton,09/07/2016,1222987,20.00, OYSTER BUS AUTOTOP,Travel LCT staff,Peoples Services Directorate,Travelling and Subsistence Allowances,A530,
http://statistics.data.gov.uk/id/local-authority/00BF,London Borough of Sutton,23/07/2016,1222987,20.00, OYSTER BUS AUTOTOP,Travel LCT staff,Peoples Services Directorate,Travelling and Subsistence Allowances,A530,
http://statistics.data.gov.uk/id/local-authority/00BF,London Borough of Sutton,07/07/2016,1222677,8.00, SUBWAY,GS activity,Peoples Services Directorate,Personal Requisites,F106,
http://statistics.data.gov.uk/id/local-authority/00BF,London Borough of Sutton,27/07/2016,1222987,95.76, Amazon UK Marketplace,Parasols LCT,Peoples Services Directorate,Personal Requisites,F106,
http://statistics.data.gov.uk/id/local-authority/00BF,London Borough of Sutton,27/07/2016,1222987,29.98, Amazon UK Marketplace,Parasol stands for LCT,Peoples Services Directorate,Personal Requisites,F106,
http://statistics.data.gov.uk/id/local-authority/00BF,London Borough of Sutton,08/07/2016,1222677,535.08, AFFINITY MOTO,1st Rent PR Agreed ER,Peoples Services Directorate,Approved Lodgings,H323,
http://statistics.data.gov.uk/id/local-authority/00BF,London Borough of Sutton,07/06/2016,1222289,560.00, THE CROFT HOTEL,Emergency Accommodation for JC,Peoples Services Directorate,Approved Lodgings,H323,
http://statistics.data.gov.uk/id/local-authority/00BF,London Borough of Sutton,03/05/2016,1222288,560.00, THE CROFT HOTEL,ACCOMMODATION FOR JC,Peoples Services Directorate,Approved Lodgings,H323,
http://statistics.data.gov.uk/id/local-authority/00BF,London Borough of Sutton,18/05/2016,1222288,560.00, THE CROFT HOTEL,ACCOMMODATION FOR JC,Peoples Services Directorate,Approved Lodgings,H323,
http://statistics.data.gov.uk/id/local-authority/00BF,London Borough of Sutton,12/07/2016,1222677,699.98, SUTTON APPLIANCES,Setting Up PR,Peoples Services Directorate,Set Up Costs - Children Leaving Care,H336,
http://statistics.data.gov.uk/id/local-authority/00BF,London Borough of Sutton,07/07/2016,1223149,23.10, TRAINLINE,LAC team staff travel,Peoples Services Directorate,Travelling and Subsistence Allowances,A530,
http://statistics.data.gov.uk/id/local-authority/00BF,London Borough of Sutton,01/07/2016,1222424,20.00, OYSTER AUTOTOPUP,Top-up of staff Oyster card,Peoples Services Directorate,Travelling and Subsistence Allowances,A530,
http://statistics.data.gov.uk/id/local-authority/00BF,London Borough of Sutton,21/07/2016,1222424,20.00, OYSTER BUS AUTOTOP,Top-up of staff Oyster card,Peoples Services Directorate,Travelling and Subsistence Allowances,A530,
http://statistics.data.gov.uk/id/local-authority/00BF,London Borough of Sutton,25/07/2016,1222424,20.00, OYSTER BUS AUTOTOP,Top-up of staff Oyster card,Peoples Services Directorate,Travelling and Subsistence Allowances,A530,
http://statistics.data.gov.uk/id/local-authority/00BF,London Borough of Sutton,07/07/2016,1221991,488.00, TRAVELODGE WEBSITE,family accommodation - No Recourse to Public Funds,Peoples Services Directorate,Payments Under the Child Care Act 1980,H210,
http://statistics.data.gov.uk/id/local-authority/00BF,London Borough of Sutton,11/07/2016,1221991,570.65, TRAVELODGE WEBSITE,family accommodation - No Recourse to Public Funds,Peoples Services Directorate,Payments Under the Child Care Act 1980,H210,
http://statistics.data.gov.uk/id/local-authority/00BF,London Borough of Sutton,19/07/2016,1221991,559.20, TRAVELODGE 7870420,family accommodation - No Recourse to Public Funds,Peoples Services Directorate,Payments Under the Child Care Act 1980,H210,
http://statistics.data.gov.uk/id/local-authority/00BF,London Borough of Sutton,25/07/2016,1221991,492.65, TRAVELODGE WEBSITE,family accommodation - No Recourse to Public Funds,Peoples Services Directorate,Payments Under the Child Care Act 1980,H210,
http://statistics.data.gov.uk/id/local-authority/00BF,London Borough of Sutton,01/07/2016,1222424,262.00, CASUAL LTD,Purchase of school uniform Client,Peoples Services Directorate,Payments Under the Child Care Act 1980,H210,
http://statistics.data.gov.uk/id/local-authority/00BF,London Borough of Sutton,12/07/2016,1222424,99.12, TRAVELODGE WEBSITE,Hotel accommodation for client,Peoples Services Directorate,Payments Under the Child Care Act 1980,H210,
http://statistics.data.gov.uk/id/local-authority/00BF,London Borough of Sutton,05/07/2016,1223149,32.18, TRAINLINE,LAC team staff travel,Peoples Services Directorate,Travelling and Subsistence Allowances,A530,
http://statistics.data.gov.uk/id/local-authority/00BF,London Borough of Sutton,05/07/2016,1223149,124.54, TRAINLINE,LAC team staff travel,Peoples Services Directorate,Travelling and Subsistence Allowances,A530,
http://statistics.data.gov.uk/id/local-authority/00BF,London Borough of Sutton,06/07/2016,1223149,30.75, TRAINLINE,LAC team staff travel,Peoples Services Directorate,Travelling and Subsistence Allowances,A530,
http://statistics.data.gov.uk/id/local-authority/00BF,London Borough of Sutton,07/07/2016,1223149,48.55, TRAINLINE,LAC team staff travel,Peoples Services Directorate,Travelling and Subsistence Allowances,A530,
http://statistics.data.gov.uk/id/local-authority/00BF,London Borough of Sutton,07/07/2016,1223149,114.85, TRAINLINE,LAC team staff travel,Peoples Services Directorate,Travelling and Subsistence Allowances,A530,
http://statistics.data.gov.uk/id/local-authority/00BF,London Borough of Sutton,08/07/2016,1223149,12.09, TRAINLINE,LAC team staff travel,Peoples Services Directorate,Travelling and Subsistence Allowances,A530,
http://statistics.data.gov.uk/id/local-authority/00BF,London Borough of Sutton,04/07/2016,1223149,22.80, TRAINLINE,LAC team staff travel,Peoples Services Directorate,Travelling and Subsistence Allowances,A530,
http://statistics.data.gov.uk/id/local-authority/00BF,London Borough of Sutton,04/07/2016,1223149,137.60, TRAINLINE,LAC team staff travel,Peoples Services Directorate,Travelling and Subsistence Allowances,A530,
http://statistics.data.gov.uk/id/local-authority/00BF,London Borough of Sutton,01/07/2016,1222424,20.00, OYSTER AUTOTOPUP,Top-up of staff Oyster card,Peoples Services Directorate,Travelling and Subsistence Allowances,A530,
http://statistics.data.gov.uk/id/local-authority/00BF,London Borough of Sutton,11/07/2016,1222424,29.53, TRAINLINE,Train travel for PEP meeting staff,Peoples Services Directorate,Travelling and Subsistence Allowances,A530,
http://statistics.data.gov.uk/id/local-authority/00BF,London Borough of Sutton,12/07/2016,1222424,43.55, TRAINLINE,Train travel for LAC Review staff,Peoples Services Directorate,Travelling and Subsistence Allowances,A530,
http://statistics.data.gov.uk/id/local-authority/00BF,London Borough of Sutton,15/07/2016,1222424,37.74, TRAINLINE,Train travel for PEP meeting staff,Peoples Services Directorate,Travelling and Subsistence Allowances,A530,
http://statistics.data.gov.uk/id/local-authority/00BF,London Borough of Sutton,17/07/2016,1222424,20.00, OYSTER BUS AUTOTOP,Top-up of staff Oyster card,Peoples Services Directorate,Travelling and Subsistence Allowances,A530,
http://statistics.data.gov.uk/id/local-authority/00BF,London Borough of Sutton,16/07/2016,1222424,-31.20, TRAINLINE,Refund of train travel staff,Peoples Services Directorate,Travelling and Subsistence Allowances,A530,
http://statistics.data.gov.uk/id/local-authority/00BF,London Borough of Sutton,18/07/2016,1222424,-13.80, TRAINLINE,Refund of train travel staff,Peoples Services Directorate,Travelling and Subsistence Allowances,A530,
http://statistics.data.gov.uk/id/local-authority/00BF,London Borough of Sutton,19/07/2016,1222424,37.74, TRAINLINE,Train travel for LAC Review staff,Peoples Services Directorate,Travelling and Subsistence Allowances,A530,
http://statistics.data.gov.uk/id/local-authority/00BF,London Borough of Sutton,26/07/2016,1222424,74.26, TRAINLINE,Train travel for LAC visit staff,Peoples Services Directorate,Travelling and Subsistence Allowances,A530,
http://statistics.data.gov.uk/id/local-authority/00BF,London Borough of Sutton,27/07/2016,1222424,89.35, TRAINLINE,Train travel for LAC Review staff,Peoples Services Directorate,Travelling and Subsistence Allowances,A530,
http://statistics.data.gov.uk/id/local-authority/00BF,London Borough of Sutton,04/07/2016,1223149,17.59, TRAINLINE,LAC team staff travel,Peoples Services Directorate,Travelling and Subsistence Allowances,A530,
http://statistics.data.gov.uk/id/local-authority/00BF,London Borough of Sutton,04/07/2016,1223149,137.60, TRAINLINE,LAC team staff travel,Peoples Services Directorate,Travelling and Subsistence Allowances,A530,
http://statistics.data.gov.uk/id/local-authority/00BF,London Borough of Sutton,30/06/2016,1222424,-10.00, LBSUTTON,Refund of birth certficate request client,Peoples Services Directorate,Personal Requisites,F106,
http://statistics.data.gov.uk/id/local-authority/00BF,London Borough of Sutton,13/07/2016,1222424,36.36, TRAINLINE,Train travel for contact client,Peoples Services Directorate,Personal Requisites,F106,
http://statistics.data.gov.uk/id/local-authority/00BF,London Borough of Sutton,13/07/2016,1222424,25.45, TRAINLINE,Train travel for LAC visit staff,Peoples Services Directorate,Personal Requisites,F106,
http://statistics.data.gov.uk/id/local-authority/00BF,London Borough of Sutton,13/07/2016,1222424,43.76, TRAINLINE,Train travel for contact client,Peoples Services Directorate,Personal Requisites,F106,
http://statistics.data.gov.uk/id/local-authority/00BF,London Borough of Sutton,17/07/2016,1222424,99.17, JURYS INN,Hotel accommodation for client,Peoples Services Directorate,Personal Requisites,F106,
http://statistics.data.gov.uk/id/local-authority/00BF,London Borough of Sutton,22/07/2016,1222424,43.96, TRAINLINE,Train travel for LAC visit staff,Peoples Services Directorate,Personal Requisites,F106,
http://statistics.data.gov.uk/id/local-authority/00BF,London Borough of Sutton,26/07/2016,1222424,11.00, WWW.WANDSWORTH.GOV.UK,Purchase of birth certificates client,Peoples Services Directorate,Personal Requisites,F106,
http://statistics.data.gov.uk/id/local-authority/00BF,London Borough of Sutton,27/07/2016,1222424,10.00, LBSUTTON,Purchase of birth certificates client,Peoples Services Directorate,Personal Requisites,F106,
http://statistics.data.gov.uk/id/local-authority/00BF,London Borough of Sutton,07/07/2016,1223149,141.00, TRAVELODGE WEBSITE,Overnight accomodation for RAS client,Peoples Services Directorate,Payments Under the Child Care Act 1980,H210,
http://statistics.data.gov.uk/id/local-authority/00BF,London Borough of Sutton,15/07/2016,1222424,-33.80, TRAINLINE,Refund of train travel client,Peoples Services Directorate,Agency Staff - Adecco,A300,
http://statistics.data.gov.uk/id/local-authority/00BF,London Borough of Sutton,20/07/2016,1222424,112.81, TRAINLINE,Train travel for LAC visit staff,Peoples Services Directorate,Agency Staff - Adecco,A300,
http://statistics.data.gov.uk/id/local-authority/00BF,London Borough of Sutton,26/07/2016,1222424,112.81, TRAINLINE,Train travel for LAC visit staff,Peoples Services Directorate,Agency Staff - Adecco,A300,
http://statistics.data.gov.uk/id/local-authority/00BF,London Borough of Sutton,26/07/2016,1222424,-99.10, TRAINLINE,Refund of train travel staff,Peoples Services Directorate,Agency Staff - Adecco,A300,
http://statistics.data.gov.uk/id/local-authority/00BF,London Borough of Sutton,02/07/2016,1222424,20.00, OYSTER BUS AUTOTOP,Top-up of staff Oyster card,Peoples Services Directorate,Travelling and Subsistence Allowances,A530,
http://statistics.data.gov.uk/id/local-authority/00BF,London Borough of Sutton,07/07/2016,1222424,20.00, OYSTER BUS AUTOTOP,Top-up of staff Oyster card,Peoples Services Directorate,Travelling and Subsistence Allowances,A530,
http://statistics.data.gov.uk/id/local-authority/00BF,London Borough of Sutton,07/07/2016,1222424,20.00, OYSTER BUS AUTOTOP,Top-up of staff Oyster card,Peoples Services Directorate,Travelling and Subsistence Allowances,A530,
http://statistics.data.gov.uk/id/local-authority/00BF,London Borough of Sutton,09/07/2016,1222424,20.00, OYSTER AUTOTOPUP,Top-up of staff Oyster card,Peoples Services Directorate,Travelling and Subsistence Allowances,A530,
http://statistics.data.gov.uk/id/local-authority/00BF,London Borough of Sutton,16/07/2016,1222424,20.00, OYSTER BUS AUTOTOP,Top-up of staff Oyster card,Peoples Services Directorate,Travelling and Subsistence Allowances,A530,
http://statistics.data.gov.uk/id/local-authority/00BF,London Borough of Sutton,17/07/2016,1222424,20.00, OYSTER BUS AUTOTOP,Top-up of staff Oyster card,Peoples Services Directorate,Travelling and Subsistence Allowances,A530,
http://statistics.data.gov.uk/id/local-authority/00BF,London Borough of Sutton,17/07/2016,1222424,20.00, OYSTER BUS AUTOTOP,Top-up of staff Oyster card,Peoples Services Directorate,Travelling and Subsistence Allowances,A530,
http://statistics.data.gov.uk/id/local-authority/00BF,London Borough of Sutton,18/07/2016,1222424,85.00, STADECOURT HOTEL,Hotel accommodation for client,Peoples Services Directorate,Travelling and Subsistence Allowances,A530,
http://statistics.data.gov.uk/id/local-authority/00BF,London Borough of Sutton,20/07/2016,1222424,20.00, LBSUTTON,Top-up of staff Oyster card,Peoples Services Directorate,Travelling and Subsistence Allowances,A530,
http://statistics.data.gov.uk/id/local-authority/00BF,London Borough of Sutton,20/07/2016,1222424,20.00, LBSUTTON,Top-up of staff Oyster card,Peoples Services Directorate,Travelling and Subsistence Allowances,A530,
http://statistics.data.gov.uk/id/local-authority/00BF,London Borough of Sutton,20/07/2016,1222424,20.00, OYSTER AUTOTOPUP,Top-up of staff Oyster card,Peoples Services Directorate,Travelling and Subsistence Allowances,A530,
http://statistics.data.gov.uk/id/local-authority/00BF,London Borough of Sutton,20/07/2016,1222424,27.59, TRAINLINE,Train travel for client visit staff,Peoples Services Directorate,Travelling and Subsistence Allowances,A530,
http://statistics.data.gov.uk/id/local-authority/00BF,London Borough of Sutton,05/07/2016,1223149,27.50, PARENTPAY.COM,School Trip for FSCP client,Peoples Services Directorate,Personal Requisites,F106,
http://statistics.data.gov.uk/id/local-authority/00BF,London Borough of Sutton,15/07/2016,1222424,10.17, LAMBETH INTERNET PAYM,Purchase of birth certificates client,Peoples Services Directorate,Payments Under the Child Care Act 1980,H210,
http://statistics.data.gov.uk/id/local-authority/00BF,London Borough of Sutton,15/07/2016,1222424,10.00, LBSUTTON,Purchase of birth certificates client,Peoples Services Directorate,Payments Under the Child Care Act 1980,H210,
http://statistics.data.gov.uk/id/local-authority/00BF,London Borough of Sutton,15/07/2016,1222424,10.00, LBSUTTON,Purchase of birth certificates client,Peoples Services Directorate,Payments Under the Child Care Act 1980,H210,
http://statistics.data.gov.uk/id/local-authority/00BF,London Borough of Sutton,15/07/2016,1222424,10.00, LBSUTTON,Purchase of birth certificates client,Peoples Services Directorate,Payments Under the Child Care Act 1980,H210,
http://statistics.data.gov.uk/id/local-authority/00BF,London Borough of Sutton,20/07/2016,1222424,29.95, WWW.ANAWIZ.COM,Hire of breast pump equipment client,Peoples Services Directorate,Payments Under the Child Care Act 1980,H210,
http://statistics.data.gov.uk/id/local-authority/00BF,London Borough of Sutton,15/07/2016,1222424,39.98, ARGOS RETAIL GROUP,Purchase of safety gates client,Peoples Services Directorate,C.C.A Household Equip & Maint,H214,
http://statistics.data.gov.uk/id/local-authority/00BF,London Borough of Sutton,26/07/2016,1223149,38.66, TRAINLINE,Fostering team staff travel,Peoples Services Directorate,Travelling and Subsistence Allowances,A530,
http://statistics.data.gov.uk/id/local-authority/00BF,London Borough of Sutton,19/07/2016,1223149,25.00, RHUBARB & BRAMLEY,Flowers for retiring foster Carer,Peoples Services Directorate,Personal Requisites,F106,
http://statistics.data.gov.uk/id/local-authority/00BF,London Borough of Sutton,08/07/2016,1223149,25.45, TRAINLINE,Adoption Team Staff Travel,Peoples Services Directorate,Travelling and Subsistence Allowances,A530,
http://statistics.data.gov.uk/id/local-authority/00BF,London Borough of Sutton,07/07/2016,1221991,"1,087.85", UNITED AIR 0162499280454,Travel to potential placement,Peoples Services Directorate,Personal Requisites,F106,
http://statistics.data.gov.uk/id/local-authority/00BF,London Borough of Sutton,07/07/2016,1221991,"1,087.85", UNITED AIR 0162499280455,Travel to potential placement,Peoples Services Directorate,Personal Requisites,F106,
http://statistics.data.gov.uk/id/local-authority/00BF,London Borough of Sutton,12/07/2016,1222424,270.00, HM PASSPORT,Purchase of passports X3 client,Peoples Services Directorate,Personal Requisites,F106,
http://statistics.data.gov.uk/id/local-authority/00BF,London Borough of Sutton,21/06/2016,1222424,-9.25, GRO HM PASSPORT OFFICE,Refund of birth certficate request client,Peoples Services Directorate,Personal Requisites,F106,
http://statistics.data.gov.uk/id/local-authority/00BF,London Borough of Sutton,13/07/2016,1222424,65.69, TRAINLINE,Train travel for FGC client,Peoples Services Directorate,Personal Requisites,F106,
http://statistics.data.gov.uk/id/local-authority/00BF,London Borough of Sutton,28/06/2016,1222424,-18.50, GRO HM PASSPORT OFFICE,Refund of birth certficate request client,Peoples Services Directorate,Personal Requisites,F106,
http://statistics.data.gov.uk/id/local-authority/00BF,London Borough of Sutton,20/07/2016,1222424,10.24, NELC INTERNET,Purchase of birth certificates client,Peoples Services Directorate,Personal Requisites,F106,
http://statistics.data.gov.uk/id/local-authority/00BF,London Borough of Sutton,20/07/2016,1222424,21.00, KENT COUNTY COUNCIL,Purchase of birth certificates client,Peoples Services Directorate,Personal Requisites,F106,
http://statistics.data.gov.uk/id/local-authority/00BF,London Borough of Sutton,20/07/2016,1222424,9.25, GRO HM PASSPORT OFFICE,Purchase of birth certificates client,Peoples Services Directorate,Personal Requisites,F106,
http://statistics.data.gov.uk/id/local-authority/00BF,London Borough of Sutton,20/07/2016,1222424,10.00, HAMPSHIRE COUNTY COUNC,Purchase of birth certificates client,Peoples Services Directorate,Personal Requisites,F106,
http://statistics.data.gov.uk/id/local-authority/00BF,London Borough of Sutton,20/07/2016,1222424,21.00, SURREY CC CARD PAY,Purchase of birth certificates client,Peoples Services Directorate,Personal Requisites,F106,
http://statistics.data.gov.uk/id/local-authority/00BF,London Borough of Sutton,20/07/2016,1222424,21.00, SURREY CC CARD PAY,Purchase of birth certificates client,Peoples Services Directorate,Personal Requisites,F106,
http://statistics.data.gov.uk/id/local-authority/00BF,London Borough of Sutton,21/07/2016,1222424,-10.24, NELC INTERNET,Refund of birth certficate request client,Peoples Services Directorate,Personal Requisites,F106,
http://statistics.data.gov.uk/id/local-authority/00BF,London Borough of Sutton,26/07/2016,1222424,20.00, LBSUTTON,Purchase of birth certificates client,Peoples Services Directorate,Personal Requisites,F106,
http://statistics.data.gov.uk/id/local-authority/00BF,London Borough of Sutton,26/07/2016,1222424,10.00, LBSUTTON,Purchase of birth certificates client,Peoples Services Directorate,Personal Requisites,F106,
http://statistics.data.gov.uk/id/local-authority/00BF,London Borough of Sutton,26/07/2016,1222424,28.92, TRAINLINE,Train travel for Adoption visit staff,Peoples Services Directorate,Travelling and Subsistence Allowances,A530,
http://statistics.data.gov.uk/id/local-authority/00BF,London Borough of Sutton,14/07/2016,1222424,40.00, LBSUTTON,Purchase of birth certificates client,Peoples Services Directorate,Personal Requisites,F106,
http://statistics.data.gov.uk/id/local-authority/00BF,London Borough of Sutton,20/07/2016,1222424,192.27, TRAINLINE,Train travel for LAC Review staff,Peoples Services Directorate,Travelling and Subsistence Allowances,A530,
http://statistics.data.gov.uk/id/local-authority/00BF,London Borough of Sutton,26/07/2016,1222424,82.21, TRAINLINE,Train travel for LAC Review staff,Peoples Services Directorate,Travelling and Subsistence Allowances,A530,
http://statistics.data.gov.uk/id/local-authority/00BF,London Borough of Sutton,26/07/2016,1222424,112.81, TRAINLINE,Train travel for LAC Review staff,Peoples Services Directorate,Travelling and Subsistence Allowances,A530,
http://statistics.data.gov.uk/id/local-authority/00BF,London Borough of Sutton,26/07/2016,1222424,91.49, TRAINLINE,Train travel for LAC Review staff,Peoples Services Directorate,Travelling and Subsistence Allowances,A530,
http://statistics.data.gov.uk/id/local-authority/00BF,London Borough of Sutton,27/07/2016,1222424,224.91, TRAINLINE,Train travel for LAC Review staff,Peoples Services Directorate,Travelling and Subsistence Allowances,A530,
http://statistics.data.gov.uk/id/local-authority/00BF,London Borough of Sutton,27/07/2016,1222987,42.45, Amazon UK Marketplace,Parasol stands for SFC,Peoples Services Directorate,Materials - General,F100,
http://statistics.data.gov.uk/id/local-authority/00BF,London Borough of Sutton,28/07/2016,1222987,86.03, Amazon UK Marketplace,Parasols SFC,Peoples Services Directorate,Materials - General,F100,
http://statistics.data.gov.uk/id/local-authority/00BF,London Borough of Sutton,15/07/2016,1222987,28.60, TESCO STORES 5999,Refreshments at Sutton family centre,Peoples Services Directorate,Provisions - General,F150,
http://statistics.data.gov.uk/id/local-authority/00BF,London Borough of Sutton,19/07/2016,1222987,33.24, MOTHERCARE DIRECT-E-CO,Changing Mats Sutton family centre,Peoples Services Directorate,Provisions - General,F150,
http://statistics.data.gov.uk/id/local-authority/00BF,London Borough of Sutton,15/07/2016,1222987,18.50, TESCO STORES 5999,Subsistence for NRPF clients at SFC,Peoples Services Directorate,Provisions - General,F150,
http://statistics.data.gov.uk/id/local-authority/00BF,London Borough of Sutton,22/07/2016,1222987,32.60, CHESSINGTON WORLD,Contact at Chessington,Peoples Services Directorate,Payments Under the Child Care Act 1980,H210,
http://statistics.data.gov.uk/id/local-authority/00BF,London Borough of Sutton,06/07/2016,1222987,500.00, WM MORRISONS,Subsistence for NRPF clients at SFC,Peoples Services Directorate,C.C.A Travel & Subsistance,H212,
http://statistics.data.gov.uk/id/local-authority/00BF,London Borough of Sutton,20/07/2016,1223149,40.00, RAINBOW TRUST SHOP,Traincourse for CWD staff,Peoples Services Directorate,Training - Course Fees,A520,
http://statistics.data.gov.uk/id/local-authority/00BF,London Borough of Sutton,04/07/2016,1223149,118.52, TRAINLINE,CWD staff travel,Peoples Services Directorate,Travelling and Subsistence Allowances,A530,
http://statistics.data.gov.uk/id/local-authority/00BF,London Borough of Sutton,19/07/2016,1223149,155.75, WWW.VOUCHEREXPRESS.CO.,Play and Stay Tesco vouchers plus postage,Peoples Services Directorate,Miscellaneous Costs,G499,
http://statistics.data.gov.uk/id/local-authority/00BF,London Borough of Sutton,13/07/2016,1221867,57.32, TRAINLINE,return Worcesthire L R,Peoples Services Directorate,Staff Travelling Expenses,E130,
http://statistics.data.gov.uk/id/local-authority/00BF,London Borough of Sutton,20/06/2016,1221868,40.49, TRAINLINE,London to Portsmouth - L R,Peoples Services Directorate,Staff Travelling Expenses,E130,
http://statistics.data.gov.uk/id/local-authority/00BF,London Borough of Sutton,21/06/2016,1221868,134.44, TRAINLINE,London to Newcastle return - R Z,Peoples Services Directorate,Staff Travelling Expenses,E130,
http://statistics.data.gov.uk/id/local-authority/00BF,London Borough of Sutton,28/06/2016,1221868,70.69, TRAINLINE,"3 x train tickets to Stoke on Trent, Nottingham and return to London - RZ",Peoples Services Directorate,Staff Travelling Expenses,E130,
http://statistics.data.gov.uk/id/local-authority/00BF,London Borough of Sutton,05/07/2016,1222274,132.00, WILKO RETAIL LIMIT,Storgage boxes for the Grange Play Centre,Unknown or multiple Directorates,Endowments & Special Funds,X470,
http://statistics.data.gov.uk/id/local-authority/00BF,London Borough of Sutton,21/07/2016,1221871,50.00, NEW SOUTHERN RAILW,Oystercard top up,"Environment, Housing & Regeneration Directorate",Travelling and Subsistence Allowances,A530,
http://statistics.data.gov.uk/id/local-authority/00BF,London Borough of Sutton,27/07/2016,1222392,129.15, WWW PROJECTORSHOP24 CO UK,"Projector screen for Cheam Lib, from Projector Shop, ordered 27/7/16",Peoples Services Directorate,Other Services,F340,
http://statistics.data.gov.uk/id/local-authority/00BF,London Borough of Sutton,19/07/2016,1222392,23.95, WILKO RETAIL LIMIT,"Sanding paper, paint from Wilkos for PastonGlass exhibit 19/7/2016",Peoples Services Directorate,Printing - General,F215,
http://statistics.data.gov.uk/id/local-authority/00BF,London Borough of Sutton,19/07/2016,1222392,19.00, WILKO RETAIL LIMIT,"Paint brushes, paint from Wilkos for PastonGlass exhibition 19/7/2016",Peoples Services Directorate,Printing - General,F215,
http://statistics.data.gov.uk/id/local-authority/00BF,London Borough of Sutton,20/07/2016,1222392,15.00, WILKO RETAIL LIMIT,Paint from Wilkos for PastonGlass exhibit 20/7/2016,Peoples Services Directorate,Printing - General,F215,
http://statistics.data.gov.uk/id/local-authority/00BF,London Borough of Sutton,20/07/2016,1222392,-5.00, WILKO RETAIL LIMIT,Refund from Wilkos for paint returned 20/7/16,Peoples Services Directorate,Printing - General,F215,
http://statistics.data.gov.uk/id/local-authority/00BF,London Borough of Sutton,22/07/2016,1222392,13.85, WILKO RETAIL LIMIT,"Napkins, tablecloth, cups, cocktail sticks, plates from Wilkos for PastonGlass launch 22/7/2016",Peoples Services Directorate,Printing - General,F215,
http://statistics.data.gov.uk/id/local-authority/00BF,London Borough of Sutton,22/07/2016,1222392,25.06, WM MORRISONS,"Food and drink for launch of PastonGlass exhibition, 22/7/2016",Peoples Services Directorate,Printing - General,F215,
http://statistics.data.gov.uk/id/local-authority/00BF,London Borough of Sutton,23/07/2016,1222392,6.50, WILKO RETAIL LIMIT,Velcro and glue from Wilkos for PastonGlass exhibit 23/7/2016,Peoples Services Directorate,Printing - General,F215,
http://statistics.data.gov.uk/id/local-authority/00BF,London Borough of Sutton,22/07/2016,1222392,20.73, B & Q 1191,"Chain and lock for PastonGlass exhibit from B&Q Sutton, 22/7/16",Peoples Services Directorate,Printing - General,F215,
http://statistics.data.gov.uk/id/local-authority/00BF,London Borough of Sutton,19/07/2016,1222392,10.85, GOSTO FINO,Refreshments ,Peoples Services Directorate,General Office Expenses,F235,
http://statistics.data.gov.uk/id/local-authority/00BF,London Borough of Sutton,21/07/2016,1222392,22.59, WH SMITH,Visitors Book/Paper liner from WH Smith for PastonGlass exhibit 20/7/16,Peoples Services Directorate,Advertising/Publicity (non Staff),F240,
http://statistics.data.gov.uk/id/local-authority/00BF,London Borough of Sutton,21/07/2016,1222392,53.30, VISTAPR*VistaPrint.uk,Postcards for PastonGlass promotion from VistaPrint 21/7/2016,Peoples Services Directorate,Advertising/Publicity (non Staff),F240,
http://statistics.data.gov.uk/id/local-authority/00BF,London Borough of Sutton,13/07/2016,1222982,44.34, Photobox Limited,Exhibition materials HLF past on glass project,Peoples Services Directorate,Advertising/Publicity (non Staff),F240,
http://statistics.data.gov.uk/id/local-authority/00BF,London Borough of Sutton,16/07/2016,1222982,43.80, WILKO RETAIL LIMIT,Exhibition materials HLF past on glass project,Peoples Services Directorate,Advertising/Publicity (non Staff),F240,
http://statistics.data.gov.uk/id/local-authority/00BF,London Borough of Sutton,14/07/2016,1222982,179.76, WWW.MAJESTIC.CO.UK,Exhibition launch HLF past on glass project,Peoples Services Directorate,Arts Programme,F306,
http://statistics.data.gov.uk/id/local-authority/00BF,London Borough of Sutton,28/07/2016,1222982,-60.00, MAJESTIC WINE,Exhibition launch HLF past on glass project,Peoples Services Directorate,Arts Programme,F306,
http://statistics.data.gov.uk/id/local-authority/00BF,London Borough of Sutton,07/07/2016,1222657,-100.04, TRAVELODGE WEBSITE,Travelodge 1nt,"Environment, Housing & Regeneration Directorate",Bed and Breakfast Accommodation,G400,
http://statistics.data.gov.uk/id/local-authority/00BF,London Borough of Sutton,03/07/2016,1222290,20.00, OYSTER AUTOTOPUP,Team oyster card top up,Chief Executive's Directorate,Travelling and Subsistence Allowances,A530,
http://statistics.data.gov.uk/id/local-authority/00BF,London Borough of Sutton,10/07/2016,1222290,20.00, OYSTER AUTOTOPUP,Team oyster card top up,Chief Executive's Directorate,Travelling and Subsistence Allowances,A530,
http://statistics.data.gov.uk/id/local-authority/00BF,London Borough of Sutton,21/07/2016,1222290,20.00, OYSTER AUTOTOPUP,Team oyster card top up,Chief Executive's Directorate,Travelling and Subsistence Allowances,A530,
http://statistics.data.gov.uk/id/local-authority/00BF,London Borough of Sutton,21/07/2016,1222290,20.00, OYSTER BUS AUTOTOP,Team oyster card top up,Chief Executive's Directorate,Travelling and Subsistence Allowances,A530,
http://statistics.data.gov.uk/id/local-authority/00BF,London Borough of Sutton,26/07/2016,1221990,23.34, LCN.COM LTD,Web hosting,Chief Executive's Directorate,General Office Expenses,F235,
http://statistics.data.gov.uk/id/local-authority/00BF,London Borough of Sutton,18/07/2016,1221945,66.35, LOVE2SHOP.CO.UK,Gift vouchers for the winner of  the Digital Survey,Chief Executive's Directorate,General Office Expenses,F235,
http://statistics.data.gov.uk/id/local-authority/00BF,London Borough of Sutton,09/07/2016,1221990,299.84, MAILCHIMP,Web hosting,Chief Executive's Directorate,Fees - Computer Software,F384,
http://statistics.data.gov.uk/id/local-authority/00BF,London Borough of Sutton,16/07/2016,1222987,20.00, OYSTER BUS AUTOTOP,Annie Oyster card for London conference,Resources Directorate,Travelling and Subsistence Allowances,A530,
http://statistics.data.gov.uk/id/local-authority/00BF,London Borough of Sutton,14/07/2016,1222424,9.99, ARGOS RETAIL GROUP,Purchase of cash tin for petty cash staff,Resources Directorate,Provisions - General,F150,
http://statistics.data.gov.uk/id/local-authority/00BF,London Borough of Sutton,13/07/2016,1222987,12.48, Amazon UK Marketplace,OT Mouse for CJ,Resources Directorate,Purchase of IT Equipment,F380,
http://statistics.data.gov.uk/id/local-authority/00BF,London Borough of Sutton,17/07/2016,1221991,95.94, LINKEDIN-335*2377933,Sponsorship renewal,Resources Directorate,Staff Advertising,A500,
http://statistics.data.gov.uk/id/local-authority/00BF,London Borough of Sutton,24/07/2016,1222424,95.94, LINKEDIN-3358018833,Ongoing subscription staff,Resources Directorate,Staff Advertising,A500,
http://statistics.data.gov.uk/id/local-authority/00BF,London Borough of Sutton,30/06/2016,1222236,-50.00, WDT LONDON,Refund of Deposit for Hire of Chairs for Annual Council,Resources Directorate,Special,D535,
http://statistics.data.gov.uk/id/local-authority/00BF,London Borough of Sutton,25/07/2016,1222236,35.00, WWW.ICO.GOV.UK,ICO Renewal for Councillor,Resources Directorate,Subscriptions - General,F450,
http://statistics.data.gov.uk/id/local-authority/00BF,London Borough of Sutton,25/07/2016,1222236,35.00, WWW.ICO.GOV.UK,ICO Renewal for Councillor,Resources Directorate,Subscriptions - General,F450,
http://statistics.data.gov.uk/id/local-authority/00BF,London Borough of Sutton,25/07/2016,1222236,35.00, WWW.ICO.GOV.UK,ICO Renewal for Councillor,Resources Directorate,Subscriptions - General,F450,
http://statistics.data.gov.uk/id/local-authority/00BF,London Borough of Sutton,25/07/2016,1222236,35.00, WWW.ICO.GOV.UK,ICO Renewal for Councillor,Resources Directorate,Subscriptions - General,F450,
http://statistics.data.gov.uk/id/local-authority/00BF,London Borough of Sutton,25/07/2016,1222236,35.00, WWW.ICO.GOV.UK,ICO Renewal for Councillor,Resources Directorate,Subscriptions - General,F450,
http://statistics.data.gov.uk/id/local-authority/00BF,London Borough of Sutton,25/07/2016,1222236,35.00, WWW.ICO.GOV.UK,ICO Renewal for Councillor,Resources Directorate,Subscriptions - General,F450,
http://statistics.data.gov.uk/id/local-authority/00BF,London Borough of Sutton,25/07/2016,1222236,35.00, WWW.ICO.GOV.UK,ICO Renewal for Councillor,Resources Directorate,Subscriptions - General,F450,
http://statistics.data.gov.uk/id/local-authority/00BF,London Borough of Sutton,25/07/2016,1222236,35.00, WWW.ICO.GOV.UK,ICO Renewal for Councillor,Resources Directorate,Subscriptions - General,F450,
http://statistics.data.gov.uk/id/local-authority/00BF,London Borough of Sutton,25/07/2016,1222236,35.00, WWW.ICO.GOV.UK,ICO Renewal for Councillor,Resources Directorate,Subscriptions - General,F450,
http://statistics.data.gov.uk/id/local-authority/00BF,London Borough of Sutton,25/07/2016,1222236,35.00, WWW.ICO.GOV.UK,ICO Renewal for Councillor,Resources Directorate,Subscriptions - General,F450,
http://statistics.data.gov.uk/id/local-authority/00BF,London Borough of Sutton,25/07/2016,1222236,35.00, WWW.ICO.GOV.UK,ICO Renewal for Councillor,Resources Directorate,Subscriptions - General,F450,
http://statistics.data.gov.uk/id/local-authority/00BF,London Borough of Sutton,25/07/2016,1222236,35.00, WWW.ICO.GOV.UK,ICO Renewal for Councillor,Resources Directorate,Subscriptions - General,F450,
http://statistics.data.gov.uk/id/local-authority/00BF,London Borough of Sutton,25/07/2016,1222236,35.00, WWW.ICO.GOV.UK,ICO Renewal for Councillor,Resources Directorate,Subscriptions - General,F450,
http://statistics.data.gov.uk/id/local-authority/00BF,London Borough of Sutton,25/07/2016,1222236,35.00, WWW.ICO.GOV.UK,ICO Renewal for Councillor,Resources Directorate,Subscriptions - General,F450,
http://statistics.data.gov.uk/id/local-authority/00BF,London Borough of Sutton,25/07/2016,1222236,35.00, WWW.ICO.GOV.UK,ICO Renewal for Councillor,Resources Directorate,Subscriptions - General,F450,
http://statistics.data.gov.uk/id/local-authority/00BF,London Borough of Sutton,25/07/2016,1222236,35.00, WWW.ICO.GOV.UK,ICO Renewal for Councillor,Resources Directorate,Subscriptions - General,F450,
http://statistics.data.gov.uk/id/local-authority/00BF,London Borough of Sutton,25/07/2016,1222236,35.00, WWW.ICO.GOV.UK,ICO Renewal for Councillor,Resources Directorate,Subscriptions - General,F450,
http://statistics.data.gov.uk/id/local-authority/00BF,London Borough of Sutton,25/07/2016,1222236,35.00, WWW.ICO.GOV.UK,ICO Renewal for Councillor,Resources Directorate,Subscriptions - General,F450,
http://statistics.data.gov.uk/id/local-authority/00BF,London Borough of Sutton,25/07/2016,1222236,35.00, WWW.ICO.GOV.UK,ICO Renewal for Councillor,Resources Directorate,Subscriptions - General,F450,
http://statistics.data.gov.uk/id/local-authority/00BF,London Borough of Sutton,25/07/2016,1222236,35.00, WWW.ICO.GOV.UK,ICO Renewal for Councillor,Resources Directorate,Subscriptions - General,F450,
http://statistics.data.gov.uk/id/local-authority/00BF,London Borough of Sutton,25/07/2016,1222236,35.00, WWW.ICO.GOV.UK,ICO Renewal for Councillor,Resources Directorate,Subscriptions - General,F450,
http://statistics.data.gov.uk/id/local-authority/00BF,London Borough of Sutton,25/07/2016,1222236,35.00, WWW.ICO.GOV.UK,ICO Renewal for Councillor,Resources Directorate,Subscriptions - General,F450,
http://statistics.data.gov.uk/id/local-authority/00BF,London Borough of Sutton,25/07/2016,1222236,35.00, WWW.ICO.GOV.UK,ICO Renewal for Councillor,Resources Directorate,Subscriptions - General,F450,
http://statistics.data.gov.uk/id/local-authority/00BF,London Borough of Sutton,25/07/2016,1222236,35.00, WWW.ICO.GOV.UK,ICO Renewal for Councillor,Resources Directorate,Subscriptions - General,F450,
http://statistics.data.gov.uk/id/local-authority/00BF,London Borough of Sutton,25/07/2016,1222236,35.00, WWW.ICO.GOV.UK,ICO Renewal for Councillor,Resources Directorate,Subscriptions - General,F450,
http://statistics.data.gov.uk/id/local-authority/00BF,London Borough of Sutton,25/07/2016,1222236,35.00, WWW.ICO.GOV.UK,ICO Renewal for Councillor,Resources Directorate,Subscriptions - General,F450,
http://statistics.data.gov.uk/id/local-authority/00BF,London Borough of Sutton,25/07/2016,1222236,35.00, WWW.ICO.GOV.UK,ICO Renewal for Councillor,Resources Directorate,Subscriptions - General,F450,
http://statistics.data.gov.uk/id/local-authority/00BF,London Borough of Sutton,25/07/2016,1222236,35.00, WWW.ICO.GOV.UK,ICO Renewal for Councillor,Resources Directorate,Subscriptions - General,F450,
http://statistics.data.gov.uk/id/local-authority/00BF,London Borough of Sutton,11/07/2016,1223034,27.00, SALAR'S VALETING CENTRE,EP/LALO vehicle cleaning,"Environment, Housing & Regeneration Directorate",Other Services,F340,
http://statistics.data.gov.uk/id/local-authority/00BF,London Borough of Sutton,06/07/2016,1223034,158.00, WWW.APM.ORG.UK,Subscription - GP,"Environment, Housing & Regeneration Directorate",Subscriptions - General,F450,
http://statistics.data.gov.uk/id/local-authority/00BF,London Borough of Sutton,25/07/2016,1223034,140.00, WP-HEMMING GROUP L,MJ subscription - WS,"Environment, Housing & Regeneration Directorate",Subscriptions - General,F450,
http://statistics.data.gov.uk/id/local-authority/00BF,London Borough of Sutton,13/07/2016,1221870,-158.50, RADISSION BLU EDWA,Refund for hotel booking no longer required,Resources Directorate,Hotel Accomodation,A512,
http://statistics.data.gov.uk/id/local-authority/00BF,London Borough of Sutton,01/07/2016,1221870,20.00, OYSTER AUTOTOPUP,Oyster card top up - Strategic Director Resources,Resources Directorate,Travelling and Subsistence Allowances,A530,
http://statistics.data.gov.uk/id/local-authority/00BF,London Borough of Sutton,13/07/2016,1221870,20.00, OYSTER AUTOTOPUP,Oyster card top up - Strategic Director Resources,Resources Directorate,Travelling and Subsistence Allowances,A530,
http://statistics.data.gov.uk/id/local-authority/00BF,London Borough of Sutton,14/07/2016,1221870,556.00, MIDLAND HOTEL,Strategic Director & Head of Service 2 nights accomodation for conference in Manchester,Resources Directorate,Travelling and Subsistence Allowances,A530,
http://statistics.data.gov.uk/id/local-authority/00BF,London Borough of Sutton,24/07/2016,1221870,20.00, OYSTER AUTOTOPUP,Oyster card top up - Strategic Director Resources,Resources Directorate,Travelling and Subsistence Allowances,A530,
http://statistics.data.gov.uk/id/local-authority/00BF,London Borough of Sutton,15/07/2016,1222894,9.25, NEW SOUTHERN RAILW,Travel - Credit Circle 15/07/16,Resources Directorate,Travelling and Subsistence Allowances,A530,
http://statistics.data.gov.uk/id/local-authority/00BF,London Borough of Sutton,13/07/2016,1221869,139.99, ARGOS RETAIL GROUP,purchase of electric cooker for crisis grant,Resources Directorate,Grants,F473,
http://statistics.data.gov.uk/id/local-authority/00BF,London Borough of Sutton,14/07/2016,1221869,499.97, ARGOS RETAIL GROUP,"purchase of cooker, washing machine & fridge freezer for crisis loan",Resources Directorate,Grants,F473,
http://statistics.data.gov.uk/id/local-authority/00BF,London Borough of Sutton,20/07/2016,1221869,499.97, ARGOS RETAIL GROUP,"purchase of cooker, washing machine & fridge freezer for crisis loan",Resources Directorate,Grants,F473,
http://statistics.data.gov.uk/id/local-authority/00BF,London Borough of Sutton,25/07/2016,1221869,207.99, ARGOS RETAIL GROUP,purchase of electric cooker for crisis grant,Resources Directorate,Grants,F473,
http://statistics.data.gov.uk/id/local-authority/00BF,London Borough of Sutton,13/07/2016,1221959,380.00, WWW.GOV.UK,Purchase of Probate Certs x 38 13/07/16,Resources Directorate,General Office Expenses,F235,
http://statistics.data.gov.uk/id/local-authority/00BF,London Borough of Sutton,28/07/2016,1221959,"2,289.00", HMCOURTS-SERVICE.G,Application for court summonses 28/07/16,Resources Directorate,Fees - Other,F299,
http://statistics.data.gov.uk/id/local-authority/00BF,London Borough of Sutton,02/07/2016,1221959,40.00, OYSTER AUTOTOPUP,Oyster Autotopup 02/07/16,Resources Directorate,Travelling and Subsistence Allowances,A530,
http://statistics.data.gov.uk/id/local-authority/00BF,London Borough of Sutton,16/07/2016,1221959,40.00, OYSTER AUTOTOPUP,Oyster Autotopup16/07/16,Resources Directorate,Travelling and Subsistence Allowances,A530,
http://statistics.data.gov.uk/id/local-authority/00BF,London Borough of Sutton,22/07/2016,1221959,40.00, OYSTER AUTOTOPUP,Oyster Autotopup 22/07/16,Resources Directorate,Travelling and Subsistence Allowances,A530,
http://statistics.data.gov.uk/id/local-authority/00BF,London Borough of Sutton,07/07/2016,1221959,63.29, AMAZON UK RETAIL AMAZON.C,Purchase of Disability Rights Handbooks x 2 07/07/16,Resources Directorate,Books of Reference/Statute,F222,
http://statistics.data.gov.uk/id/local-authority/00BF,London Borough of Sutton,14/07/2016,1222424,10.86, TRAINLINE,Train travel for Review Adults staff,Peoples Services Directorate,Travelling and Subsistence Allowances,A530,
http://statistics.data.gov.uk/id/local-authority/00BF,London Borough of Sutton,19/07/2016,1222424,203.49, TRAINLINE,Train travel for Review Adults staff,Peoples Services Directorate,Travelling and Subsistence Allowances,A530,
http://statistics.data.gov.uk/id/local-authority/00BF,London Borough of Sutton,01/07/2016,1223149,300.00, THE THATCHED HOUSE,Initial B&B for Transition Client,Peoples Services Directorate,Interim Placements - Ext Provider,G317,
http://statistics.data.gov.uk/id/local-authority/00BF,London Borough of Sutton,01/07/2016,1223149,379.00, THE THATCHED HOUSE,Initial B&B for Transition Client,Peoples Services Directorate,Interim Placements - Ext Provider,G317,
http://statistics.data.gov.uk/id/local-authority/00BF,London Borough of Sutton,27/07/2016,1222424,22.80, TRAINLINE,Train travel for Client Visit Adult Staff,Peoples Services Directorate,Travelling and Subsistence Allowances,A530,
http://statistics.data.gov.uk/id/local-authority/00BF,London Borough of Sutton,26/07/2016,1221991,"1,920.00", THE THATCHED HOUSE,pre placement accommodation,Peoples Services Directorate,Interim Placements - Ext Provider,G317,
http://statistics.data.gov.uk/id/local-authority/00BF,London Borough of Sutton,25/07/2016,1221991,53.15, ARGOS RETAIL GROUP,Starter goods for client accommadation,Peoples Services Directorate,Miscellaneous Costs,G499,
http://statistics.data.gov.uk/id/local-authority/00BF,London Borough of Sutton,25/07/2016,1221991,53.54, ARGOS RETAIL GROUP,Starter goods for client accommadation,Peoples Services Directorate,Miscellaneous Costs,G499,
http://statistics.data.gov.uk/id/local-authority/00BF,London Borough of Sutton,01/07/2016,1222424,106.00, BIG YELLOW S S SUTTON,Payment of storage facility for client,Peoples Services Directorate,Rent - General,D650,
http://statistics.data.gov.uk/id/local-authority/00BF,London Borough of Sutton,12/07/2016,1222424,129.33, BIG YELLOW S S SUTTON,Payment of storage facility for client,Peoples Services Directorate,Rent - General,D650,
http://statistics.data.gov.uk/id/local-authority/00BF,London Borough of Sutton,12/07/2016,1222424,251.44, ACCESS SELF STORAG,Payment of storage facility for client,Peoples Services Directorate,Personal Requisites,F106,
http://statistics.data.gov.uk/id/local-authority/00BF,London Borough of Sutton,22/07/2016,1222424,65.00, TRAVELODGE WEBSITE,Hotel accommodation for client,Peoples Services Directorate,Provisions - General,F150,
http://statistics.data.gov.uk/id/local-authority/00BF,London Borough of Sutton,27/07/2016,1222424,100.00, J LEON & CO,Staff Oyster card top up Adults,Peoples Services Directorate,Provisions - General,F150,
http://statistics.data.gov.uk/id/local-authority/00BF,London Borough of Sutton,28/07/2016,1222424,-60.00, TRAVELODGE WEBSITE,Cancellation of hotel Adults client,Peoples Services Directorate,Provisions - General,F150,
http://statistics.data.gov.uk/id/local-authority/00BF,London Borough of Sutton,30/06/2016,1221991,94.95, BHS 022,Client emergency placement - clothing,Peoples Services Directorate,Provisions - General,F150,
http://statistics.data.gov.uk/id/local-authority/00BF,London Borough of Sutton,30/06/2016,1221991,30.00, BOOTS 0858,Client emergency placerment - basic toiletries,Peoples Services Directorate,Provisions - General,F150,
http://statistics.data.gov.uk/id/local-authority/00BF,London Borough of Sutton,30/06/2016,1221991,18.00, PRIMARK,Client emergency placement - clothing,Peoples Services Directorate,Provisions - General,F150,
http://statistics.data.gov.uk/id/local-authority/00BF,London Borough of Sutton,27/07/2016,1222424,200.00, WM MORRISONS,Purchase of Morrisons vouchers for Adult Services,Peoples Services Directorate,Provisions - General,F150,
http://statistics.data.gov.uk/id/local-authority/00BF,London Borough of Sutton,14/07/2016,1222894,20.00, WWW.GOV.UK,Probate searches x2 (W/P),Peoples Services Directorate,Fees - Other,F299,
